[Event "Titled Tuesday Blitz April 18 Early 2023"]
[White "Kalajzic, Ivan"]
[Black "Sargissyan, Sargis"]
[WhiteFideId "14506378"]
[BlackFideId "13303210"]
[WhiteElo "2203"]
[BlackElo "2109"]
[Result "0-1"]
[Round "08"]
[TimeControl "180+2"]
[Date "2023.04.18"]
[WhiteClock "0:00:09"]
[BlackClock "0:00:05"]

1. d4 {[%clk 0:03:00]}  Nf6 {[%clk 0:02:54]} 2. Nc3 {[%clk 0:03:00]}  d5 {[%clk 0:02:52]} 3. Bg5 {[%clk 0:03:00]}  h6 {[%clk 0:02:38]} 4. Bxf6 {[%clk 0:02:57]}  exf6 {[%clk 0:02:39]} 5. e4 {[%clk 0:02:58]}  dxe4 {[%clk 0:02:39]} 6. Nxe4 {[%clk 0:02:58]}  f5 {[%clk 0:02:38]} 7. Nc3 {[%clk 0:02:56]}  Bd6 {[%clk 0:02:31]} 8. g3 {[%clk 0:02:56]}  O-O {[%clk 0:02:30]} 9. Bg2 {[%clk 0:02:56]}  f4 {[%clk 0:02:24]} 10. Nge2 {[%clk 0:02:50]}  Nc6 {[%clk 0:02:18]} 11. O-O {[%clk 0:02:45]}  Bg4 {[%clk 0:02:15]} 12. f3 {[%clk 0:02:16]}  Bh5 {[%clk 0:02:10]} 13. g4 {[%clk 0:02:13]}  Bg6 {[%clk 0:02:09]} 14. a3 {[%clk 0:02:14]}  Bh7 {[%clk 0:01:43]} 15. Qd2 {[%clk 0:02:09]}  g5 {[%clk 0:01:43]} 16. Rad1 {[%clk 0:02:07]}  Re8 {[%clk 0:01:43]} 17. Rfe1 {[%clk 0:02:07]}  Bf8 {[%clk 0:01:41]} 18. Ne4 {[%clk 0:01:51]}  Bg7 {[%clk 0:01:36]} 19. c3 {[%clk 0:01:51]}  f5 {[%clk 0:01:16]} 20. gxf5 {[%clk 0:01:49]}  Bxf5 {[%clk 0:01:17]} 21. Nc1 {[%clk 0:01:46]}  Qd7 {[%clk 0:01:06]} 22. Nd3 {[%clk 0:01:38]}  b6 {[%clk 0:01:07]} 23. Ndf2 {[%clk 0:01:38]}  Rad8 {[%clk 0:01:05]} 24. Kh1 {[%clk 0:01:32]}  Kh8 {[%clk 0:01:04]} 25. Qe2 {[%clk 0:01:23]}  h5 {[%clk 0:00:55]} 26. Qf1 {[%clk 0:01:06]}  g4 {[%clk 0:00:41]} 27. Ng5 {[%clk 0:00:56]}  Bh6 {[%clk 0:00:31]} 28. Nfe4 {[%clk 0:00:50]}  Qg7 {[%clk 0:00:31]} 29. h4 {[%clk 0:00:49]}  gxh3 {[%clk 0:00:23]} 30. Nxh3 {[%clk 0:00:36]}  Rg8 {[%clk 0:00:19]} 31. Re2 {[%clk 0:00:34]}  Qd7 {[%clk 0:00:18]} 32. Kh2 {[%clk 0:00:31]}  Rg6 {[%clk 0:00:17]} 33. Nhf2 {[%clk 0:00:18]}  Rdg8 {[%clk 0:00:16]} 34. Nd3 {[%clk 0:00:18]}  Bxe4 {[%clk 0:00:12]} 35. Rxe4 {[%clk 0:00:18]}  Rxg2+ {[%clk 0:00:11]} 36. Qxg2 {[%clk 0:00:17]}  Rxg2+ {[%clk 0:00:12]} 37. Kxg2 {[%clk 0:00:18]}  Ne7 {[%clk 0:00:11]} 38. Rh1 {[%clk 0:00:17]}  Nf5 {[%clk 0:00:10]} 39. Ne5 {[%clk 0:00:17]}  Qg7+ {[%clk 0:00:10]} 40. Kf2 {[%clk 0:00:10]}  Qg3+ {[%clk 0:00:09]} 41. Kf1 {[%clk 0:00:10]}  Ne3+ {[%clk 0:00:06]} 42. Ke2 {[%clk 0:00:09]}  Qg2+ {[%clk 0:00:05]} 43. Kd3 {[%clk 0:00:09]}  Qc2# {[%clk 0:00:05]} 0-1


[Site "https://www.chess.com"]

[Event "Titled Tuesday Blitz April 18 Early 2023"]
[White "Milchev, Nikolay"]
[Black "Hoffmann, Asa"]
[WhiteFideId "2906090"]
[BlackFideId "2001470"]
[WhiteElo "2449"]
[BlackElo "2117"]
[Result "1-0"]
[Round "08"]
[TimeControl "180+2"]
[Date "2023.04.18"]
[WhiteClock "0:00:59"]
[BlackClock "0:00:18"]

1. Nf3 {[%clk 0:03:00]}  d6 {[%clk 0:02:59]} 2. d4 {[%clk 0:03:00]}  Bg4 {[%clk 0:02:55]} 3. c4 {[%clk 0:02:59]}  Nd7 {[%clk 0:02:54]} 4. Nc3 {[%clk 0:02:58]}  Ngf6 {[%clk 0:02:54]} 5. h3 {[%clk 0:02:56]}  Bxf3 {[%clk 0:02:53]} 6. exf3 {[%clk 0:02:57]}  c6 {[%clk 0:02:53]} 7. d5 {[%clk 0:02:57]}  cxd5 {[%clk 0:02:50]} 8. cxd5 {[%clk 0:02:57]}  g6 {[%clk 0:02:50]} 9. g3 {[%clk 0:02:53]}  Bg7 {[%clk 0:02:50]} 10. Bg2 {[%clk 0:02:53]}  O-O {[%clk 0:02:49]} 11. O-O {[%clk 0:02:53]}  a6 {[%clk 0:02:49]} 12. f4 {[%clk 0:02:53]}  Rc8 {[%clk 0:02:47]} 13. a4 {[%clk 0:02:51]}  Nc5 {[%clk 0:02:35]} 14. Re1 {[%clk 0:02:47]}  Re8 {[%clk 0:02:33]} 15. a5 {[%clk 0:02:45]}  b5 {[%clk 0:02:17]} 16. axb6 {[%clk 0:02:44]}  Qxb6 {[%clk 0:02:17]} 17. Na4 {[%clk 0:02:36]}  Nxa4 {[%clk 0:02:15]} 18. Qxa4 {[%clk 0:02:37]}  Ra8 {[%clk 0:02:04]} 19. Ra2 {[%clk 0:02:32]}  Qb5 {[%clk 0:02:03]} 20. Be3 {[%clk 0:02:21]}  Nd7 {[%clk 0:02:01]} 21. Qxb5 {[%clk 0:02:14]}  axb5 {[%clk 0:02:01]} 22. Rea1 {[%clk 0:02:15]}  Rab8 {[%clk 0:01:52]} 23. Ra7 {[%clk 0:02:10]}  Nc5 {[%clk 0:01:50]} 24. R1a2 {[%clk 0:02:09]}  Na4 {[%clk 0:01:49]} 25. b3 {[%clk 0:02:07]}  Nc5 {[%clk 0:01:47]} 26. b4 {[%clk 0:01:59]}  Na4 {[%clk 0:01:45]} 27. Rc2 {[%clk 0:01:55]}  Bf6 {[%clk 0:01:38]} 28. Rac7 {[%clk 0:01:46]}  Nb2 {[%clk 0:01:30]} 29. Bf1 {[%clk 0:01:45]}  Nc4 {[%clk 0:01:12]} 30. Bxc4 {[%clk 0:01:38]}  bxc4 {[%clk 0:01:12]} 31. R2xc4 {[%clk 0:01:36]}  Rb5 {[%clk 0:01:12]} 32. g4 {[%clk 0:01:32]}  Rxd5 {[%clk 0:01:06]} 33. g5 {[%clk 0:01:33]}  Bg7 {[%clk 0:00:59]} 34. Rb7 {[%clk 0:01:33]}  Rd1+ {[%clk 0:00:53]} 35. Kg2 {[%clk 0:01:33]}  d5 {[%clk 0:00:54]} 36. Rc1 {[%clk 0:01:28]}  Rd3 {[%clk 0:00:51]} 37. Rd7 {[%clk 0:01:19]}  d4 {[%clk 0:00:50]} 38. Rc4 {[%clk 0:01:17]}  e5 {[%clk 0:00:48]} 39. fxe5 {[%clk 0:01:17]}  Bxe5 {[%clk 0:00:48]} 40. Bxd4 {[%clk 0:01:12]}  Bxd4 {[%clk 0:00:45]} 41. Rdxd4 {[%clk 0:01:11]}  Rb3 {[%clk 0:00:43]} 42. Re4 {[%clk 0:01:10]}  Rb8 {[%clk 0:00:41]} 43. h4 {[%clk 0:01:10]}  Kg7 {[%clk 0:00:41]} 44. f3 {[%clk 0:01:10]}  Rb5 {[%clk 0:00:41]} 45. Kg3 {[%clk 0:01:10]}  Rf5 {[%clk 0:00:40]} 46. Rf4 {[%clk 0:01:09]}  Rxf4 {[%clk 0:00:36]} 47. Kxf4 {[%clk 0:01:09]}  h6 {[%clk 0:00:36]} 48. Ke4 {[%clk 0:01:07]}  Rb2 {[%clk 0:00:31]} 49. Kd5 {[%clk 0:01:02]}  hxg5 {[%clk 0:00:30]} 50. hxg5 {[%clk 0:01:02]}  Kf8 {[%clk 0:00:20]} 51. Kc6 {[%clk 0:01:01]}  Ke7 {[%clk 0:00:19]} 52. Rd4 {[%clk 0:01:00]}  Rc2+ {[%clk 0:00:18]} 53. Kb6 {[%clk 0:00:59]} 1-0


[Site "https://www.chess.com"]

[Event "Titled Tuesday Blitz April 18 Early 2023"]
[White "Ciorgovean, Iustin"]
[Black "Karthik Sai Ch"]
[WhiteFideId "1242911"]
[BlackFideId "46649484"]
[WhiteElo "2186"]
[BlackElo "2003"]
[Result "0-1"]
[Round "08"]
[TimeControl "180+2"]
[Date "2023.04.18"]
[WhiteClock "0:00:06"]
[BlackClock "0:00:24"]

1. d4 {[%clk 0:02:57]}  d5 {[%clk 0:02:59]} 2. Nf3 {[%clk 0:02:57]}  Nf6 {[%clk 0:02:59]} 3. Bf4 {[%clk 0:02:57]}  c5 {[%clk 0:02:59]} 4. e3 {[%clk 0:02:57]}  Nc6 {[%clk 0:02:59]} 5. Nbd2 {[%clk 0:02:58]}  Qb6 {[%clk 0:02:59]} 6. dxc5 {[%clk 0:02:54]}  Qxc5 {[%clk 0:02:59]} 7. Be2 {[%clk 0:02:51]}  Bf5 {[%clk 0:02:58]} 8. c4 {[%clk 0:02:43]}  e6 {[%clk 0:02:53]} 9. O-O {[%clk 0:02:41]}  Be7 {[%clk 0:02:52]} 10. a3 {[%clk 0:02:39]}  a5 {[%clk 0:02:50]} 11. b4 {[%clk 0:02:33]}  axb4 {[%clk 0:02:32]} 12. axb4 {[%clk 0:02:34]}  Rxa1 {[%clk 0:02:31]} 13. Qxa1 {[%clk 0:02:33]}  Qa7 {[%clk 0:02:19]} 14. b5 {[%clk 0:02:22]}  Qxa1 {[%clk 0:02:12]} 15. Rxa1 {[%clk 0:02:23]}  Nd8 {[%clk 0:02:12]} 16. Nd4 {[%clk 0:02:22]}  Bg6 {[%clk 0:02:00]} 17. Be5 {[%clk 0:01:57]}  Bb4 {[%clk 0:01:38]} 18. N2b3 {[%clk 0:01:29]}  Ke7 {[%clk 0:01:28]} 19. c5 {[%clk 0:01:16]}  Ne4 {[%clk 0:01:24]} 20. Rc1 {[%clk 0:01:00]}  f6 {[%clk 0:01:22]} 21. Bc7 {[%clk 0:00:59]}  e5 {[%clk 0:01:18]} 22. Nf3 {[%clk 0:00:40]}  Ne6 {[%clk 0:01:10]} 23. Ba5 {[%clk 0:00:39]}  Bxa5 {[%clk 0:01:07]} 24. Nxa5 {[%clk 0:00:39]}  N4xc5 {[%clk 0:01:06]} 25. Nh4 {[%clk 0:00:31]}  Ra8 {[%clk 0:01:03]} 26. Ra1 {[%clk 0:00:21]}  Kf7 {[%clk 0:00:54]} 27. Nxg6 {[%clk 0:00:16]}  hxg6 {[%clk 0:00:53]} 28. b6 {[%clk 0:00:13]}  Nd8 {[%clk 0:00:45]} 29. Bf3 {[%clk 0:00:11]}  Ke6 {[%clk 0:00:43]} 30. h3 {[%clk 0:00:05]}  Nc6 {[%clk 0:00:39]} 31. Bxd5+ {[%clk 0:00:02]}  Kxd5 {[%clk 0:00:35]} 32. Rd1+ {[%clk 0:00:03]}  Ke6 {[%clk 0:00:31]} 33. Nxc6 {[%clk 0:00:03]}  bxc6 {[%clk 0:00:32]} 34. Rc1 {[%clk 0:00:03]}  Kd6 {[%clk 0:00:30]} 35. Rd1+ {[%clk 0:00:03]}  Ke6 {[%clk 0:00:30]} 36. Rc1 {[%clk 0:00:04]}  Kd5 {[%clk 0:00:26]} 37. Rd1+ {[%clk 0:00:04]}  Kc4 {[%clk 0:00:26]} 38. Rc1+ {[%clk 0:00:05]}  Kb5 {[%clk 0:00:26]} 39. b7 {[%clk 0:00:05]}  Nxb7 {[%clk 0:00:26]} 40. Rb1+ {[%clk 0:00:05]}  Ka6 {[%clk 0:00:24]} 41. Ra1+ {[%clk 0:00:06]}  Na5 {[%clk 0:00:24]} 0-1


[Site "https://www.chess.com"]

[Event "Titled Tuesday Blitz April 18 Early 2023"]
[White "Namitbir Singh Walia"]
[Black "Pourkashiyan, Atousa"]
[WhiteFideId "35071068"]
[BlackFideId "12502014"]
[WhiteElo "2239"]
[BlackElo "2228"]
[Result "1-0"]
[Round "08"]
[TimeControl "180+2"]
[Date "2023.04.18"]
[WhiteClock "0:00:10"]
[BlackClock "0:00:02"]

1. e4 {[%clk 0:02:58]}  c5 {[%clk 0:02:59]} 2. Nf3 {[%clk 0:02:56]}  e6 {[%clk 0:02:59]} 3. d4 {[%clk 0:02:54]}  cxd4 {[%clk 0:03:00]} 4. Nxd4 {[%clk 0:02:54]}  a6 {[%clk 0:03:01]} 5. c4 {[%clk 0:02:54]}  Nf6 {[%clk 0:03:00]} 6. Nc3 {[%clk 0:02:55]}  Qc7 {[%clk 0:03:01]} 7. a3 {[%clk 0:02:55]}  b6 {[%clk 0:03:01]} 8. Be3 {[%clk 0:02:53]}  Bb7 {[%clk 0:03:02]} 9. f3 {[%clk 0:02:51]}  d6 {[%clk 0:03:02]} 10. Be2 {[%clk 0:02:51]}  Nbd7 {[%clk 0:03:03]} 11. O-O {[%clk 0:02:49]}  Be7 {[%clk 0:03:04]} 12. Rc1 {[%clk 0:02:49]}  O-O {[%clk 0:03:05]} 13. Qd2 {[%clk 0:02:48]}  Rfc8 {[%clk 0:03:05]} 14. Rfd1 {[%clk 0:02:47]}  Qd8 {[%clk 0:03:05]} 15. b4 {[%clk 0:02:33]}  Ne5 {[%clk 0:03:06]} 16. Na4 {[%clk 0:02:33]}  Rab8 {[%clk 0:03:06]} 17. Nb3 {[%clk 0:02:32]}  Nfd7 {[%clk 0:03:06]} 18. f4 {[%clk 0:02:26]}  Ng6 {[%clk 0:03:05]} 19. Bf3 {[%clk 0:02:26]}  Nh4 {[%clk 0:03:02]} 20. Qf2 {[%clk 0:02:19]}  Nxf3+ {[%clk 0:03:02]} 21. gxf3 {[%clk 0:02:20]}  b5 {[%clk 0:02:55]} 22. Nb2 {[%clk 0:02:11]}  bxc4 {[%clk 0:02:43]} 23. Nxc4 {[%clk 0:02:12]}  d5 {[%clk 0:02:43]} 24. Nb6 {[%clk 0:02:07]}  Rxc1 {[%clk 0:02:37]} 25. Rxc1 {[%clk 0:01:44]}  dxe4 {[%clk 0:02:16]} 26. Rd1 {[%clk 0:01:43]}  Bc6 {[%clk 0:02:09]} 27. Na5 {[%clk 0:01:25]}  Bb5 {[%clk 0:01:58]} 28. Nxd7 {[%clk 0:01:06]}  Bxd7 {[%clk 0:01:07]} 29. Nc6 {[%clk 0:01:06]}  Qe8 {[%clk 0:00:54]} 30. Nxb8 {[%clk 0:01:05]}  Ba4 {[%clk 0:00:54]} 31. Rc1 {[%clk 0:00:50]}  Qxb8 {[%clk 0:00:54]} 32. fxe4 {[%clk 0:00:51]}  h6 {[%clk 0:00:45]} 33. Bd4 {[%clk 0:00:42]}  Qb7 {[%clk 0:00:35]} 34. Qg2 {[%clk 0:00:39]}  Bf8 {[%clk 0:00:35]} 35. Bc5 {[%clk 0:00:15]}  Bc6 {[%clk 0:00:24]} 36. Bxf8 {[%clk 0:00:13]}  Kxf8 {[%clk 0:00:25]} 37. Rc4 {[%clk 0:00:12]}  Bb5 {[%clk 0:00:13]} 38. Qd2 {[%clk 0:00:11]}  Kg8 {[%clk 0:00:07]} 39. Rd4 {[%clk 0:00:11]}  Kh7 {[%clk 0:00:06]} 40. Qc2 {[%clk 0:00:10]}  Qb6 {[%clk 0:00:06]} 41. Qc5 {[%clk 0:00:10]}  Qb7 {[%clk 0:00:04]} 42. Kf2 {[%clk 0:00:10]}  h5 {[%clk 0:00:03]} 43. Qxh5+ {[%clk 0:00:09]}  Kg8 {[%clk 0:00:02]} 44. Qc5 {[%clk 0:00:10]}  g6 {[%clk 0:00:02]} 45. Ke3 {[%clk 0:00:10]} 1-0


[Site "https://www.chess.com"]

[Event "Titled Tuesday Blitz April 18 Early 2023"]
[White "Kopczynski, Michal"]
[Black "Theytookourjobs"]
[WhiteFideId "1124200"]
[WhiteElo "2212"]
[BlackElo "2317"]
[Result "1-0"]
[Round "08"]
[TimeControl "180+2"]
[Date "2023.04.18"]
[WhiteClock "0:01:56"]
[BlackClock "0:01:26"]

1. e4 {[%clk 0:03:00]}  e6 {[%clk 0:02:54]} 2. d4 {[%clk 0:03:00]}  d5 {[%clk 0:02:54]} 3. Nc3 {[%clk 0:03:01]}  Nf6 {[%clk 0:02:52]} 4. e5 {[%clk 0:03:01]}  Nfd7 {[%clk 0:02:52]} 5. f4 {[%clk 0:03:02]}  c5 {[%clk 0:02:53]} 6. dxc5 {[%clk 0:03:03]}  Nc6 {[%clk 0:02:51]} 7. Nf3 {[%clk 0:03:03]}  Bxc5 {[%clk 0:02:49]} 8. Bd3 {[%clk 0:03:03]}  a6 {[%clk 0:02:46]} 9. Qe2 {[%clk 0:03:03]}  b5 {[%clk 0:02:45]} 10. Bd2 {[%clk 0:03:04]}  Nb6 {[%clk 0:02:40]} 11. O-O-O {[%clk 0:03:03]}  b4 {[%clk 0:02:39]} 12. Nb1 {[%clk 0:03:03]}  a5 {[%clk 0:02:37]} 13. f5 {[%clk 0:03:03]}  Qc7 {[%clk 0:02:25]} 14. fxe6 {[%clk 0:02:46]}  Bxe6 {[%clk 0:02:23]} 15. Ng5 {[%clk 0:02:35]}  Qxe5 {[%clk 0:02:14]} 16. Nxe6 {[%clk 0:02:33]}  Qxe2 {[%clk 0:02:04]} 17. Nxg7+ {[%clk 0:02:29]}  Kf8 {[%clk 0:02:02]} 18. Bxe2 {[%clk 0:02:29]}  Kxg7 {[%clk 0:02:02]} 19. Bf4 {[%clk 0:02:21]}  Rhe8 {[%clk 0:01:49]} 20. Bb5 {[%clk 0:02:18]}  Re6 {[%clk 0:01:43]} 21. Rhe1 {[%clk 0:02:14]}  Nd4 {[%clk 0:01:40]} 22. Rxe6 {[%clk 0:01:57]}  fxe6 {[%clk 0:01:26]} 23. Be5+ {[%clk 0:01:56]} 1-0


[Site "https://www.chess.com"]

[Event "Titled Tuesday Blitz April 18 Early 2023"]
[White "Tyagi, Kushan"]
[Black "littlepillow2010"]
[WhiteFideId "2040069"]
[WhiteElo "2286"]
[BlackElo "2410"]
[Result "1-0"]
[Round "08"]
[TimeControl "180+2"]
[Date "2023.04.18"]
[WhiteClock "0:00:10"]
[BlackClock "0:00:02"]

1. d4 {[%clk 0:03:00]}  d5 {[%clk 0:02:59]} 2. c4 {[%clk 0:03:01]}  c6 {[%clk 0:02:59]} 3. Nf3 {[%clk 0:03:01]}  Nf6 {[%clk 0:03:00]} 4. Qb3 {[%clk 0:03:01]}  dxc4 {[%clk 0:02:58]} 5. Qxc4 {[%clk 0:03:01]}  b5 {[%clk 0:02:59]} 6. Qc2 {[%clk 0:03:01]}  Bb7 {[%clk 0:03:00]} 7. e4 {[%clk 0:02:56]}  Nbd7 {[%clk 0:02:59]} 8. Nbd2 {[%clk 0:02:51]}  e6 {[%clk 0:02:58]} 9. Nb3 {[%clk 0:02:47]}  Qb6 {[%clk 0:02:49]} 10. Be3 {[%clk 0:02:29]}  Bb4+ {[%clk 0:02:48]} 11. Nfd2 {[%clk 0:02:29]}  a5 {[%clk 0:02:46]} 12. a3 {[%clk 0:02:26]}  Bxd2+ {[%clk 0:02:43]} 13. Nxd2 {[%clk 0:02:20]}  O-O {[%clk 0:02:38]} 14. Bd3 {[%clk 0:02:18]}  g6 {[%clk 0:02:36]} 15. O-O {[%clk 0:02:09]}  Rac8 {[%clk 0:02:34]} 16. b4 {[%clk 0:02:08]}  a4 {[%clk 0:02:33]} 17. e5 {[%clk 0:01:51]}  Nd5 {[%clk 0:02:24]} 18. Ne4 {[%clk 0:01:49]}  Ba8 {[%clk 0:02:15]} 19. h4 {[%clk 0:01:47]}  Qd8 {[%clk 0:01:51]} 20. Bg5 {[%clk 0:01:40]}  Qb6 {[%clk 0:01:44]} 21. Qb2 {[%clk 0:01:37]}  Kg7 {[%clk 0:01:37]} 22. h5 {[%clk 0:00:53]}  h6 {[%clk 0:01:12]} 23. Be3 {[%clk 0:00:42]}  f5 {[%clk 0:00:44]} 24. exf6+ {[%clk 0:00:38]}  N7xf6 {[%clk 0:00:44]} 25. hxg6 {[%clk 0:00:38]}  Ng4 {[%clk 0:00:15]} 26. Nc5 {[%clk 0:00:24]}  Rce8 {[%clk 0:00:08]} 27. Qe2 {[%clk 0:00:20]}  Ngxe3 {[%clk 0:00:05]} 28. fxe3 {[%clk 0:00:20]}  Qc7 {[%clk 0:00:03]} 29. Qg4 {[%clk 0:00:16]}  Rf6 {[%clk 0:00:02]} 30. Rxf6 {[%clk 0:00:15]}  Nxf6 {[%clk 0:00:03]} 31. Nxe6+ {[%clk 0:00:15]}  Rxe6 {[%clk 0:00:03]} 32. Qxe6 {[%clk 0:00:15]}  c5 {[%clk 0:00:02]} 33. bxc5 {[%clk 0:00:12]}  Bd5 {[%clk 0:00:02]} 34. Qe5 {[%clk 0:00:11]}  Qb7 {[%clk 0:00:02]} 35. Rf1 {[%clk 0:00:08]}  Qc6 {[%clk 0:00:01]} 36. Rxf6 {[%clk 0:00:08]}  Qxf6 {[%clk 0:00:02]} 37. Qxd5 {[%clk 0:00:08]}  Qe7 {[%clk 0:00:02]} 38. Qf7+ {[%clk 0:00:09]}  Qxf7 {[%clk 0:00:02]} 39. gxf7 {[%clk 0:00:09]}  Kxf7 {[%clk 0:00:02]} 40. Bxb5 {[%clk 0:00:10]} 1-0


[Site "https://www.chess.com"]

[Event "Titled Tuesday Blitz April 18 Early 2023"]
[White "Jaivardhan Raj"]
[Black "Liu, Casper"]
[WhiteFideId "25744437"]
[BlackFideId "1454153"]
[WhiteElo "1772"]
[BlackElo "2221"]
[Result "1-0"]
[Round "08"]
[TimeControl "180+2"]
[Date "2023.04.18"]
[WhiteClock "0:00:15"]
[BlackClock "0:00:01"]

1. e4 {[%clk 0:02:46]}  c5 {[%clk 0:02:57]} 2. Nf3 {[%clk 0:02:46]}  Nf6 {[%clk 0:02:58]} 3. e5 {[%clk 0:02:45]}  Nd5 {[%clk 0:02:58]} 4. d4 {[%clk 0:02:45]}  cxd4 {[%clk 0:02:58]} 5. Nxd4 {[%clk 0:02:45]}  Nc6 {[%clk 0:02:58]} 6. Nxc6 {[%clk 0:02:44]}  dxc6 {[%clk 0:02:59]} 7. c4 {[%clk 0:02:44]}  Nc7 {[%clk 0:02:59]} 8. Qxd8+ {[%clk 0:02:42]}  Kxd8 {[%clk 0:03:00]} 9. Nc3 {[%clk 0:02:43]}  Bf5 {[%clk 0:02:54]} 10. Bg5 {[%clk 0:02:42]}  Ne6 {[%clk 0:02:52]} 11. O-O-O+ {[%clk 0:02:41]}  Kc7 {[%clk 0:02:52]} 12. Be3 {[%clk 0:02:40]}  g5 {[%clk 0:02:51]} 13. Be2 {[%clk 0:02:39]}  Bg7 {[%clk 0:02:48]} 14. g4 {[%clk 0:02:33]}  Bg6 {[%clk 0:02:46]} 15. h4 {[%clk 0:02:12]}  h6 {[%clk 0:02:43]} 16. hxg5 {[%clk 0:02:01]}  hxg5 {[%clk 0:02:42]} 17. Rxh8 {[%clk 0:01:57]}  Rxh8 {[%clk 0:02:40]} 18. Bd3 {[%clk 0:01:52]}  Bxd3 {[%clk 0:02:33]} 19. Rxd3 {[%clk 0:01:53]}  Bxe5 {[%clk 0:02:34]} 20. Ne4 {[%clk 0:01:51]}  f6 {[%clk 0:02:18]} 21. Bxa7 {[%clk 0:01:42]}  Ra8 {[%clk 0:01:53]} 22. Ra3 {[%clk 0:01:37]}  Rh8 {[%clk 0:01:22]} 23. Be3 {[%clk 0:01:25]}  Rh4 {[%clk 0:01:16]} 24. f3 {[%clk 0:01:21]}  Rh2 {[%clk 0:01:10]} 25. Bd2 {[%clk 0:01:16]}  Nd4 {[%clk 0:01:07]} 26. Rd3 {[%clk 0:01:08]}  Rh3 {[%clk 0:00:58]} 27. Nc5 {[%clk 0:00:49]}  b6 {[%clk 0:00:41]} 28. Rxd4 {[%clk 0:00:36]}  bxc5 {[%clk 0:00:41]} 29. Ba5+ {[%clk 0:00:35]}  Kb7 {[%clk 0:00:32]} 30. Rd3 {[%clk 0:00:28]}  Rh2 {[%clk 0:00:22]} 31. Bd2 {[%clk 0:00:27]}  Bd4 {[%clk 0:00:17]} 32. b4 {[%clk 0:00:22]}  Rf2 {[%clk 0:00:09]} 33. bxc5 {[%clk 0:00:20]}  Bxc5 {[%clk 0:00:10]} 34. Kc2 {[%clk 0:00:18]}  e6 {[%clk 0:00:06]} 35. Kb3 {[%clk 0:00:17]}  Kb6 {[%clk 0:00:05]} 36. a4 {[%clk 0:00:17]}  f5 {[%clk 0:00:04]} 37. Rd7 {[%clk 0:00:16]}  fxg4 {[%clk 0:00:02]} 38. a5+ {[%clk 0:00:15]}  Ka6 {[%clk 0:00:01]} 39. fxg4 {[%clk 0:00:16]}  e5 {[%clk 0:00:01]} 40. Bc3 {[%clk 0:00:15]} 1-0


[Site "https://www.chess.com"]

[Event "Titled Tuesday Blitz April 18 Early 2023"]
[White "Avazkhonov, Alikhon"]
[Black "Jiganchine, Roman"]
[WhiteFideId "14208504"]
[BlackFideId "2603667"]
[WhiteElo "1739"]
[BlackElo "2259"]
[Result "1-0"]
[Round "08"]
[TimeControl "180+2"]
[Date "2023.04.18"]
[WhiteClock "0:00:09"]
[BlackClock "0:00:16"]

1. d4 {[%clk 0:02:49]}  d5 {[%clk 0:02:59]} 2. c4 {[%clk 0:02:50]}  e6 {[%clk 0:02:59]} 3. Nc3 {[%clk 0:02:51]}  Nf6 {[%clk 0:02:58]} 4. cxd5 {[%clk 0:02:51]}  Nxd5 {[%clk 0:02:58]} 5. Be3 {[%clk 0:02:51]}  Nxe3 {[%clk 0:02:49]} 6. fxe3 {[%clk 0:02:52]}  c5 {[%clk 0:02:47]} 7. Nf3 {[%clk 0:02:52]}  Nc6 {[%clk 0:02:46]} 8. Qd2 {[%clk 0:02:42]}  Be7 {[%clk 0:02:41]} 9. Rd1 {[%clk 0:02:42]}  O-O {[%clk 0:02:39]} 10. e4 {[%clk 0:02:43]}  cxd4 {[%clk 0:02:32]} 11. Nxd4 {[%clk 0:02:43]}  Bh4+ {[%clk 0:02:17]} 12. g3 {[%clk 0:01:55]}  Bg5 {[%clk 0:02:17]} 13. e3 {[%clk 0:01:55]}  Ne5 {[%clk 0:02:17]} 14. Be2 {[%clk 0:01:53]}  Qf6 {[%clk 0:02:10]} 15. h4 {[%clk 0:01:49]}  Qh6 {[%clk 0:02:08]} 16. Nc2 {[%clk 0:01:47]}  Bd7 {[%clk 0:01:49]} 17. O-O {[%clk 0:01:43]}  Be7 {[%clk 0:01:46]} 18. Nd4 {[%clk 0:01:43]}  Rad8 {[%clk 0:01:41]} 19. Qc1 {[%clk 0:01:42]}  a6 {[%clk 0:01:26]} 20. Kg2 {[%clk 0:01:31]}  Bc5 {[%clk 0:01:24]} 21. Rf4 {[%clk 0:01:07]}  Bc6 {[%clk 0:01:19]} 22. Nd5 {[%clk 0:00:40]}  Be7 {[%clk 0:01:06]} 23. Nxe7+ {[%clk 0:00:16]}  Kh8 {[%clk 0:01:06]} 24. Nexc6 {[%clk 0:00:17]}  bxc6 {[%clk 0:01:05]} 25. Nxc6 {[%clk 0:00:18]}  Rxd1 {[%clk 0:01:01]} 26. Bxd1 {[%clk 0:00:18]}  Ng6 {[%clk 0:00:59]} 27. Rf2 {[%clk 0:00:16]}  Nxh4+ {[%clk 0:00:58]} 28. gxh4 {[%clk 0:00:17]}  Qxh4 {[%clk 0:00:58]} 29. Bf3 {[%clk 0:00:17]}  Qg5+ {[%clk 0:00:58]} 30. Kf1 {[%clk 0:00:18]}  Rc8 {[%clk 0:00:52]} 31. Qc4 {[%clk 0:00:17]}  Qh4 {[%clk 0:00:50]} 32. Qxa6 {[%clk 0:00:17]}  Re8 {[%clk 0:00:46]} 33. Bg2 {[%clk 0:00:16]}  Qg5 {[%clk 0:00:44]} 34. Qb6 {[%clk 0:00:14]}  Qh5 {[%clk 0:00:41]} 35. Ke1 {[%clk 0:00:15]}  h6 {[%clk 0:00:36]} 36. a4 {[%clk 0:00:14]}  Qh4 {[%clk 0:00:30]} 37. a5 {[%clk 0:00:12]}  Qh2 {[%clk 0:00:29]} 38. a6 {[%clk 0:00:12]}  Qg1+ {[%clk 0:00:28]} 39. Bf1 {[%clk 0:00:13]}  Qg4 {[%clk 0:00:27]} 40. a7 {[%clk 0:00:13]}  Qxe4 {[%clk 0:00:25]} 41. Rxf7 {[%clk 0:00:08]}  Qb1+ {[%clk 0:00:24]} 42. Kf2 {[%clk 0:00:08]}  Qc2+ {[%clk 0:00:23]} 43. Be2 {[%clk 0:00:08]}  Qg6 {[%clk 0:00:23]} 44. Qb7 {[%clk 0:00:08]}  Qg5 {[%clk 0:00:21]} 45. a8=Q {[%clk 0:00:08]}  Qh4+ {[%clk 0:00:21]} 46. Kg2 {[%clk 0:00:06]}  Qg5+ {[%clk 0:00:21]} 47. Kf1 {[%clk 0:00:06]}  Rxa8 {[%clk 0:00:17]} 48. Qxa8+ {[%clk 0:00:07]}  Kh7 {[%clk 0:00:18]} 49. Bd3+ {[%clk 0:00:08]}  Qg6 {[%clk 0:00:15]} 50. Bxg6+ {[%clk 0:00:08]}  Kxg6 {[%clk 0:00:16]} 51. Ne5+ {[%clk 0:00:09]} 1-0


[Site "https://www.chess.com"]